fUSD/lending_fUSD_20240125
["ID","MTS","AMOUNT","RATE_DAILY","PERIOD"]
[312686121,1706145121530,-500.0,0.0005178,31]
[312686122,1706145121541,-8715.7,0.0005178,31]
[312686123,1706145121551,-500.0,0.0005178,31]
[312686124,1706145121560,-1119.03,0.0005178,2]
[312686125,1706145121570,-500.0,0.0005178,31]
[312686126,1706145121579,-203.82,0.0005178,31]
[312686127,1706145121589,-563.62,0.0005178,31]
[312686128,1706145121600,-500.0,0.0005178,31]
[312686129,1706145121610,-551.67,0.0005178,31]
[312686130,1706145121619,-1258.54,0.0005178,31]
[312686131,1706145121628,-797.85,0.0005178,31]
[312686132,1706145121637,-500.0,0.0005178,31]
[312686133,1706145121646,-500.0,0.0005178,31]
[312686134,1706145121655,-500.0,0.0005178,31]
[312686135,1706145121664,-500.0,0.0005178,31]
[312686136,1706145121674,-500.0,0.0005178,31]
[312686137,1706145121683,-524.49,0.0005178,31]
[312686138,1706145121692,-1041.4,0.0005178,31]
[312686139,1706145121701,-500.0,0.0005178,31]
[312686140,1706145121711,-500.0,0.0005178,31]
[312686141,1706145121720,-500.0,0.0005178,31]
[312686142,1706145121729,-572.67,0.0005178,31]
[312686143,1706145121739,-500.0,0.0005178,31]
[312686144,1706145121748,-1295.76,0.0005178,31]
[312686145,1706145121757,-717.84,0.0005178,31]
[312686146,1706145121766,-531.79,0.0005178,31]
[312686147,1706145121775,-866.53,0.0005178,31]
[312686148,1706145121785,-500.0,0.0005178,31]
[312686149,1706145121794,-500.0,0.0005178,31]
[312686150,1706145121803,-500.0,0.0005178,31]
[312686151,1706145121813,-543.89,0.0005178,31]
[312686152,1706145121822,-622.27118636,0.0005178,31]
[312686153,1706145121831,-1360.18,0.0005178,31]
[312686154,1706145121840,-1845.53,0.0005178,31]
[312686155,1706145121850,-738.6,0.0005178,31]
[312686156,1706145121859,-500.0,0.0005178,31]
[312686157,1706145121868,-645.65,0.0005178,31]
[312686158,1706145121878,-541.32,0.0005178,31]
[312686159,1706145121887,-500.0,0.0005178,31]
[312686160,1706145121896,-500.0,0.0005178,31]
[312686161,1706145121906,-500.0,0.0005178,31]
[312686162,1706145121915,-569.14,0.0005178,31]
[312686163,1706145121924,-500.0,0.0005178,31]
[312686164,1706145121934,-500.0,0.0005178,31]
[312686165,1706145121943,-500.0,0.0005178,31]
[312686166,1706145121952,-567.82,0.0005178,31]
[312686167,1706145121961,-959.04,0.0005178,31]
[312686168,1706145121970,-500.0,0.0005178,31]
[312686169,1706145121980,-672.35,0.0005178,31]
[312686170,1706145121989,-500.0,0.0005178,31]
[312686171,1706145121999,-500.0,0.0005178,31]
[312686172,1706145122050,-3857.57,0.0005178,5]
[312686173,1706145122059,-1206.46,0.0005178,31]
[312686174,1706145122069,-608.48,0.0005178,31]
[312686175,1706145122078,-500.0,0.0005178,31]
[312686176,1706145122087,-1000.0,0.0005178,2]
[312686177,1706145122096,-500.0,0.0005178,31]
[312686178,1706145122105,-2393.75,0.0005178,31]
[312686179,1706145122115,-681.13,0.0005178,31]
[312686180,1706145122124,-683.16,0.0005178,31]
[312686181,1706145122134,-714.81,0.0005178,31]
[312686182,1706145122143,-500.0,0.0005178,31]
[312686183,1706145122152,-500.0,0.0005178,31]
[312686184,1706145122161,-500.0,0.0005178,31]
[312686185,1706145122171,-966.39,0.0005178,31]
[312686186,1706145122180,-5066.61,0.0005178,31]
[312686187,1706145122189,-585.71,0.0005178,31]
[312686188,1706145122199,-2701.77,0.0005178,31]
[312686189,1706145122208,-535.75,0.0005178,31]
[312686190,1706145122217,-500.0,0.0005178,31]
[312686191,1706145122226,-2453.54,0.0005178,31]
[312686192,1706145122235,-2066.55,0.0005178,31]
[312686193,1706145122245,-687.75,0.0005178,31]
[312686194,1706145122254,-580.27,0.0005178,31]
[312686195,1706145122263,-532.81,0.0005178,31]
[312686196,1706145122272,-5784.02,0.0005178,31]
[312686197,1706145122282,-1006.46,0.0005178,31]
[312686198,1706145122292,-500.0,0.0005178,31]
[312686199,1706145122301,-500.0,0.0005178,31]
[312686200,1706145122311,-500.0,0.0005178,31]
[312686201,1706145122321,-500.0,0.0005178,31]
[312686202,1706145122330,-537.04,0.0005178,31]
[312686203,1706145122340,-500.0,0.0005178,31]
[312686204,1706145122350,-835.92,0.0005178,31]
[312686205,1706145122358,-584.5,0.0005178,31]
[312686206,1706145122368,-742.38,0.0005178,31]
[312686207,1706145122377,-500.0,0.0005178,31]
[312686208,1706145122386,-660.52,0.0005178,31]
[312686209,1706145122395,-540.87,0.0005178,31]
[312686210,1706145122404,-500.0,0.0005178,31]
[312686211,1706145122413,-1086.36,0.0005178,31]
[312686212,1706145122422,-650.74,0.0005178,31]
[312686213,1706145122431,-1735.79,0.0005178,31]
[312686214,1706145122440,-500.0,0.0005178,31]
[312686215,1706145122449,-500.0,0.0005178,31]
[312686216,1706145122458,-500.0,0.0005178,31]
[312686217,1706145122467,-677.43,0.0005178,31]
[312686218,1706145122476,-500.0,0.0005178,31]
[312686219,1706145122485,-700.44,0.0005178,31]
[312686220,1706145122494,-1060.9,0.0005178,31]
[312686221,1706145122503,-500.0,0.0005178,31]
[312686222,1706145122512,-500.55,0.0005178,31]
[312686223,1706145122521,-500.0,0.0005178,31]
[312686224,1706145122530,-500.0,0.0005178,31]
[312686225,1706145122540,-547.24,0.0005178,31]
[312686226,1706145122553,-2280.94,0.0005178,31]
[312686227,1706145122563,-552.79,0.0005178,31]
[312686228,1706145122572,-1320.68,0.0005178,31]
[312686229,1706145122582,-500.0,0.0005178,31]
[312686230,1706145122591,-500.0,0.0005178,31]
[312686231,1706145122602,-500.0,0.0005178,31]
[312686232,1706145122611,-581.01,0.0005178,31]
[312686233,1706145122620,-712.54,0.0005178,31]
[312686234,1706145122630,-500.0,0.0005178,31]
[312686235,1706145122639,-1247.14,0.0005178,31]
[312686236,1706145122649,-500.0,0.0005178,31]
[312686237,1706145122658,-500.0,0.0005178,31]
[312686238,1706145122667,-608.94,0.0005178,31]
[312686239,1706145122676,-312.4817196,0.0005178,31]
[312686240,1706145122686,-693.55,0.0005178,31]
[312686241,1706145122695,-500.0,0.0005178,31]
[312686242,1706145122704,-887.42,0.0005178,31]
[312686243,1706145122714,-500.0,0.0005178,31]
[312686244,1706145122723,-500.0,0.0005178,31]
[312686245,1706145122733,-633.04,0.0005178,31]
[312686246,1706145122743,-706.67,0.0005178,31]
[312686247,1706145122752,-500.0,0.0005178,31]
[312686248,1706145122761,-778.86,0.0005178,31]
[312686249,1706145122771,-4966.08,0.0005178,31]
[312686250,1706145122780,-639.06,0.0005178,31]
[312686251,1706145122790,-712.26,0.0005178,31]
[312686252,1706145122799,-1315.35,0.0005178,31]
[312686253,1706145122809,-187.99703922,0.0005178,31]
[312686254,1706145122818,-740.74,0.0005178,31]
[312686255,1706145122901,-564.19,0.0005178,31]
[312686256,1706145122910,-645.15,0.0005178,31]
[312686257,1706145122919,-500.0,0.0005178,31]
[312686258,1706145122928,-1073.61,0.0005178,31]
[312686259,1706145122937,-765.5,0.0005178,31]
[312686260,1706145122947,-500.0,0.0005178,31]
[312686261,1706145122955,-539.53,0.0005178,31]
[312686262,1706145122965,-751.1,0.0005178,31]
[312686263,1706145122974,-553.53,0.0005178,31]
[312686264,1706145122983,-500.0,0.0005178,31]
[312686265,1706145122992,-500.0,0.0005178,31]
[312686266,1706145123000,-537.1,0.0005178,31]
[312686267,1706145123010,-608.69,0.0005178,31]
[312686268,1706145123019,-649.59,0.0005178,31]
[312686269,1706145123030,-3061.04,0.0005178,31]
[312686270,1706145123038,-875.62,0.0005178,31]
[312686271,1706145123047,-769.1,0.0005178,31]
[312686272,1706145123057,-442.65509928,0.0005178,31]
[312686273,1706145123067,-1451.54,0.0005178,31]
[312686274,1706145123076,-500.0,0.0005178,31]
[312686275,1706145123086,-860.59,0.0005178,31]
[312686276,1706145123095,-500.0,0.0005178,31]
[312686277,1706145123105,-703.22,0.0005178,31]
[312686278,1706145123115,-992.0,0.0005178,31]
[312686279,1706145123125,-737.72,0.0005178,31]
[312686280,1706145123134,-658.3,0.0005178,31]
[312686281,1706145123144,-500.0,0.0005178,31]
[312686282,1706145123153,-500.0,0.0005178,31]
[312686283,1706145123162,-500.0,0.0005178,31]
[312686284,1706145123172,-500.0,0.0005178,31]
[312686285,1706145123181,-500.0,0.0005178,31]
[312686286,1706145123191,-500.0,0.0005178,31]
[312686287,1706145123201,-655.7,0.0005178,31]
[312686288,1706145123211,-599.29,0.0005178,31]
[312686289,1706145123220,-764.66,0.0005178,31]
[312686290,1706145123229,-500.0,0.0005178,31]
[312686291,1706145123238,-3144.18,0.0005178,31]
[312686292,1706145123248,-548.31,0.0005178,31]
[312686293,1706145123257,-673.27,0.0005178,31]
[312686294,1706145123267,-500.0,0.0005178,31]
[312686295,1706145123276,-765.11,0.0005178,31]
[312686296,1706145123286,-730.54,0.0005178,31]
[312686297,1706145123295,-500.0,0.0005178,31]
[312686298,1706145123305,-515.5,0.0005178,31]
[312686299,1706145123314,-500.0,0.0005178,31]
[312686300,1706145123324,-618.61,0.0005178,31]
[312686301,1706145123334,-1295.4,0.0005178,31]
[312686302,1706145123343,-500.0,0.0005178,31]
[312686303,1706145123353,-792.67,0.0005178,31]
[312686304,1706145123363,-1247.69,0.0005178,31]
[312686305,1706145123373,-600.26,0.0005178,31]
[312686306,1706145123382,-500.0,0.0005178,31]
[312686307,1706145123391,-501.79,0.0005178,31]
[312686308,1706145123400,-678.69,0.0005178,31]
[312686309,1706145123409,-748.16,0.0005178,31]
[312686310,1706145123418,-689.9,0.0005178,31]
[312686311,1706145123427,-3710.41,0.0005178,31]
[312686312,1706145123436,-500.0,0.0005178,120]
[312686313,1706145123446,-1129.79,0.0005178,31]
[312686314,1706145123455,-500.0,0.0005178,31]
[312686315,1706145123464,-560.58,0.0005178,31]
[312686316,1706145123474,-527.05191337,0.0005178,31]
[312686317,1706145123483,-500.0,0.0005178,31]
[312686318,1706145123492,-2615.23,0.0005178,31]
[312686319,1706145123501,-536.66,0.0005178,31]
[312686320,1706145123511,-1281.32,0.0005178,31]
[312686321,1706145123520,-820.44,0.0005178,31]
[312686322,1706145123529,-500.0,0.0005178,31]
[312686323,1706145123540,-1013.31,0.0005178,31]
[312686324,1706145123553,-500.0,0.0005178,31]
[312686325,1706145123563,-571.87,0.0005178,31]
[312686326,1706145123572,-500.0,0.0005178,31]
[312686327,1706145123581,-500.0,0.0005178,31]
[312686328,1706145123592,-605.74,0.0005178,31]
[312686329,1706145123601,-500.0,0.0005178,31]
[312686330,1706145123611,-500.0,0.0005178,31]
[312686331,1706145123620,-500.0,0.0005178,31]
[312686332,1706145123629,-537.66,0.0005178,31]
[312686333,1706145123638,-756.21,0.0005178,31]
[312686334,1706145123647,-594.93,0.0005178,2]
[312686335,1706145123657,-500.0,0.0005178,31]
[312686336,1706145123667,-500.0,0.0005178,31]
[312686337,1706145123676,-724.25,0.0005178,31]
[312686338,1706145123685,-724.18,0.0005178,31]
[312686339,1706145123695,-2993.87,0.0005178,31]
[312686340,1706145123705,-618.86,0.0005178,31]
[312686341,1706145123714,-612.72,0.0005178,31]
[312686342,1706145123723,-500.0,0.0005178,31]
[312686343,1706145123732,-500.0,0.0005178,31]
[312686344,1706145123742,-500.0,0.0005178,31]
[312686345,1706145123751,-887.79,0.0005178,31]
[312686346,1706145123760,-514.92,0.0005178,31]
[312686347,1706145123770,-500.0,0.0005178,31]
[312686348,1706145123779,-1822.59,0.0005178,2]
[312686349,1706145123788,-500.0,0.0005178,31]
[312686350,1706145123798,-1226.02,0.0005178,31]
[312686351,1706145123807,-939.98,0.0005178,31]
[312686352,1706145123817,-500.0,0.0005178,31]
[312686353,1706145123826,-500.0,0.0005178,31]
[312686354,1706145123835,-500.0,0.0005178,31]
[312686355,1706145123844,-500.0,0.0005178,31]
[312686356,1706145123855,-500.0,0.0005178,31]
[312686357,1706145123864,-508.04,0.0005178,31]
[312686358,1706145123873,-681.8,0.0005178,31]
[312686359,1706145123882,-646.07,0.0005178,31]
[312686360,1706145123891,-432.40353136,0.00051799,60]
[312686361,1706145123900,-1000.0,0.000518,7]
[312686362,1706145123909,-156.43151779,0.00051815,60]
[312686363,1706145123918,-176.58520058,0.0005182,60]
[312686364,1706145123927,-150.26769463,0.00051824,60]
[312686365,1706145123936,-156.33916901,0.00051832,60]
[312686366,1706145123945,-153.87365434,0.00051832,60]
[312686367,1706145123955,-150.26769463,0.00051845,60]
[312686368,1706145123964,-167.05741097,0.00051865,60]
[312686369,1706145123973,-1463.20744382,0.00051895,60]
[312686370,1706145123983,-584.90819405,0.00051897,60]
[312686371,1706145123991,-150.0,0.000519,35]
[312686372,1706145124001,-3165.52667844,0.000519,120]
[312686373,1706145124010,-210.0,0.000519,40]
[312686374,1706145124019,-204.0,0.00051916,32]
[312686375,1706145124029,-2577.64223759,0.0005194,120]
[312686376,1706145124038,-655.94646982,0.00051944,120]
[312686377,1706145124047,-200.0,0.00051957,30]
[312686378,1706145124056,-200.0,0.00051957,30]
[312686379,1706145124065,-200.0,0.00051958,30]
[312686380,1706145124075,-1284.88349026,0.0005196,30]
[312686381,1706145124084,-1828.50750681,0.0005196,30]
[312686382,1706145124093,-571.7605562,0.00051964,2]
[312686383,1706145124102,-474.9754451,0.00051964,2]
[312686384,1706145124110,-150.0,0.00051964,7]
[312686385,1706145124119,-1284.88349026,0.00051964,30]
[312686386,1706145124128,-200.0,0.00051965,30]
[312686387,1706145124137,-452.49609033,0.0005197,60]
[312686388,1706145124146,-1284.88349026,0.00051981,30]
[312686389,1706145124154,-1828.50750681,0.00051984,30]
[312686390,1706145124164,-200.0,0.00051987,30]
[312686391,1706145124172,-200.0,0.00051987,41]
[312686392,1706145124181,-200.0,0.00051987,52]
[312686393,1706145124190,-200.0,0.00051987,63]
[312686394,1706145124199,-200.0,0.00051987,80]
[312686395,1706145124209,-1284.88349026,0.00051987,30]
[312686396,1706145124218,-1828.50750681,0.00051989,30]
[312686397,1706145124227,-1828.50750681,0.0005199,30]
[312686398,1706145124236,-200.0,0.0005199,30]
[312686399,1706145124245,-2610.35304989,0.00052,2]
[312686400,1706145124254,-2933.35737412,0.00052,45]
[312686401,1706145124264,-527.85244648,0.00052,45]
[312686402,1706145124273,-558.01040668,0.00052,45]
[312686403,1706145124282,-200.0,0.00052,120]
[312686404,1706145124292,-200.0,0.00052,120]
[312686405,1706145124301,-33736.0,0.00052,120]
[312686406,1706145124310,-500.0,0.00052,7]
[312686407,1706145124318,-500.0,0.00052,7]
[312686408,1706145124327,-500.0,0.00052,7]
[312686409,1706145124336,-230.01150313,0.00052,30]
[312686410,1706145124345,-500.0,0.00052,7]
[312686411,1706145124356,-500.0,0.00052,7]
[312686412,1706145124366,-500.0,0.00052,7]
[312686413,1706145124375,-492.51,0.00052,7]
[312686414,1706145124384,-300.0,0.00052,30]
[312686415,1706145124393,-868.5742581,0.00052,45]
[312686416,1706145124402,-200.0,0.00052,30]
[312686417,1706145124411,-1790.05085,0.00052,28]
[312686418,1706145124421,-210.0,0.00052,120]
[312686419,1706145124430,-647.69,0.00052,120]
[312686420,1706145124439,-150.0,0.00052,30]
[312686421,1706145124448,-584.90819405,0.0005201,60]
[312686422,1706145124457,-150.0,0.00052011,7]
[312686423,1706145124467,-168.71792367,0.00052014,60]
[312686424,1706145124476,-153.87365434,0.00052016,60]
[312686425,1706145124485,-153.95702124,0.00052038,60]
[312686426,1706145124494,-150.0,0.0005204,7]
[312686427,1706145124503,-452.49609033,0.0005204,60]
[312686428,1706145124512,-967.89520667,0.0005205,14]
[312686429,1706145124521,-967.89520667,0.0005205,14]
[312686430,1706145124530,-967.89520667,0.0005205,14]
[312686431,1706145124541,-967.89520667,0.0005205,14]
[312686432,1706145124551,-967.89520667,0.0005205,14]
[312686433,1706145124560,-967.89520667,0.0005205,14]
[312686434,1706145124570,-967.89520667,0.0005205,14]
[312686435,1706145124579,-967.89520667,0.0005205,14]
[312686436,1706145124589,-967.89520667,0.0005205,14]
[312686437,1706145124599,-967.89520667,0.0005205,14]
[312686438,1706145124608,-967.89520667,0.0005205,14]
[312686439,1706145124618,-967.89520667,0.0005205,14]
[312686440,1706145124627,-967.89520667,0.0005205,14]
[312686441,1706145124636,-967.89520667,0.0005205,14]
[312686442,1706145124645,-967.89520667,0.0005205,14]
[312686443,1706145124654,-967.89520667,0.0005205,14]
[312686444,1706145124663,-967.89520667,0.0005205,14]
[312686445,1706145124672,-967.89520667,0.0005205,14]
[312686446,1706145124681,-967.89520667,0.0005205,14]
[312686447,1706145124690,-967.89,0.0005205,14]
[312686448,1706145124699,-394.81616979,0.0005205,14]
[312686449,1706145124708,-394.81616979,0.0005205,14]
[312686450,1706145124717,-394.81616979,0.0005205,14]
[312686451,1706145124727,-394.81616979,0.0005205,14]
[312686452,1706145124737,-394.81616979,0.0005205,14]
[312686453,1706145124746,-394.81616979,0.0005205,14]
[312686454,1706145124755,-394.81616979,0.0005205,14]
[312686455,1706145124764,-394.81616979,0.0005205,14]
[312686456,1706145124773,-394.81616979,0.0005205,14]
[312686457,1706145124783,-394.81616979,0.0005205,14]
[312686458,1706145124793,-394.81616979,0.0005205,14]
[312686459,1706145124803,-394.81616979,0.0005205,14]
[312686460,1706145124812,-394.81616979,0.0005205,14]
[312686461,1706145124822,-394.81616979,0.0005205,14]
[312686462,1706145124831,-394.81616979,0.0005205,14]
[312686463,1706145124840,-394.81616979,0.0005205,14]
[312686464,1706145124850,-394.81616979,0.0005205,14]
[312686465,1706145124859,-394.81616979,0.0005205,14]
[312686466,1706145124869,-394.81616979,0.0005205,14]
[312686467,1706145124878,-394.81,0.0005205,14]
[312686468,1706145124887,-632.20810468,0.0005205,14]
[312686469,1706145124896,-632.20810468,0.0005205,14]
[312686470,1706145124905,-632.20810468,0.0005205,14]
[312686471,1706145124914,-632.20810468,0.0005205,14]
[312686472,1706145124924,-632.20810468,0.0005205,14]
[312686473,1706145124933,-632.20810468,0.0005205,14]
[312686474,1706145124943,-632.20810468,0.0005205,14]
[312686475,1706145124954,-632.20810468,0.0005205,14]
[312686476,1706145124963,-632.20810468,0.0005205,14]
[312686477,1706145124973,-632.20810468,0.0005205,14]
[312686478,1706145124982,-632.20810468,0.0005205,14]
[312686479,1706145124991,-632.20810468,0.0005205,14]
[312686480,1706145125000,-632.20810468,0.0005205,14]
[312686481,1706145125009,-632.20810468,0.0005205,14]
[312686482,1706145125019,-632.20810468,0.0005205,14]
[312686483,1706145125028,-632.20810468,0.0005205,14]
[312686484,1706145125038,-632.20810468,0.0005205,14]
[312686485,1706145125047,-632.20810468,0.0005205,14]
[312686486,1706145125057,-632.20810468,0.0005205,14]
[312686487,1706145125066,-632.2,0.0005205,14]
[312686488,1706145125076,-793.31227869,0.0005205,14]
[312686489,1706145125085,-793.31227869,0.0005205,14]
[312686490,1706145125095,-793.31227869,0.0005205,14]
[312686491,1706145125105,-793.31227869,0.0005205,14]
[312686492,1706145125115,-793.31227869,0.0005205,14]
[312686493,1706145125125,-793.31227869,0.0005205,14]
[312686494,1706145125134,-793.31227869,0.0005205,14]
[312686495,1706145125144,-793.31227869,0.0005205,14]
[312686496,1706145125154,-793.31227869,0.0005205,14]
[312686497,1706145125164,-793.31227869,0.0005205,14]
[312686498,1706145125174,-793.31227869,0.0005205,14]
[312686499,1706145125183,-793.31227869,0.0005205,14]
[312686500,1706145125193,-793.31227869,0.0005205,14]
[312686501,1706145125203,-793.31227869,0.0005205,14]
[312686502,1706145125212,-793.31227869,0.0005205,14]
[312686503,1706145125222,-793.31227869,0.0005205,14]
[312686504,1706145125231,-793.31227869,0.0005205,14]
[312686505,1706145125241,-793.31227869,0.0005205,14]
[312686506,1706145125251,-793.31227869,0.0005205,14]
[312686507,1706145125261,-793.31,0.0005205,14]
[312686508,1706145125272,-700.0870837,0.0005205,14]
[312686509,1706145125282,-700.0870837,0.0005205,14]
[312686510,1706145125292,-700.0870837,0.0005205,14]
[312686511,1706145125302,-700.0870837,0.0005205,14]
[312686512,1706145125312,-700.0870837,0.0005205,14]
[312686513,1706145125323,-700.0870837,0.0005205,14]
[312686514,1706145125332,-700.0870837,0.0005205,14]
[312686515,1706145125343,-700.0870837,0.0005205,14]
[312686516,1706145125353,-700.0870837,0.0005205,14]
[312686517,1706145125363,-700.0870837,0.0005205,14]
[312686518,1706145125373,-700.0870837,0.0005205,14]
[312686519,1706145125383,-700.0870837,0.0005205,14]
[312686520,1706145125393,-700.0870837,0.0005205,14]
[312686521,1706145125402,-700.0870837,0.0005205,14]
[312686522,1706145125412,-700.0870837,0.0005205,14]
[312686523,1706145125422,-700.0870837,0.0005205,14]
[312686524,1706145125432,-700.0870837,0.0005205,14]
[312686525,1706145125442,-700.0870837,0.0005205,14]
[312686526,1706145125451,-700.0870837,0.0005205,14]
[312686527,1706145125461,-700.08,0.0005205,14]
[312686528,1706145125471,-3724.62806019,0.00052051,2]
[312686529,1706145125481,-516.58311,0.00052054,14]
[312686530,1706145125491,-516.58311,0.00052054,14]
[312686531,1706145125500,-500.0,0.00052054,31]
[312686532,1706145125509,-500.0,0.00052054,31]
[312686533,1706145125519,-500.0,0.00052054,31]
[312686534,1706145125529,-500.0,0.00052054,31]
[312686535,1706145125541,-547.97766184,0.00052054,31]
[312686536,1706145125551,-500.0,0.00052054,31]
[312686537,1706145125560,-500.0,0.00052054,31]
[312686538,1706145125570,-339.6851618,0.00052054,31]
[312686539,1706145125579,-500.0,0.00052054,31]
[312686540,1706145125588,-642.40357523,0.00052054,31]
[312686541,1706145125599,-571.81,0.00052054,31]
[312686542,1706145125609,-500.0,0.00052054,31]
[312686543,1706145125619,-500.0,0.00052054,31]
[312686544,1706145125628,-500.0,0.00052054,31]
[312686545,1706145125638,-1000.0,0.00052054,7]
[312686546,1706145125647,-500.0,0.00052054,31]
[312686547,1706145125656,-569.3,0.00052054,31]
[312686548,1706145125666,-500.0,0.00052054,31]
[312686549,1706145125676,-500.0,0.00052054,31]
[312686550,1706145125686,-500.0,0.00052054,31]
[312686551,1706145125696,-500.0,0.00052054,31]
[312686552,1706145125706,-209.74851988,0.00052054,31]
[312686553,1706145125715,-607.8,0.00052054,31]
[312686554,1706145125725,-500.0,0.00052054,31]
[312686555,1706145125735,-500.0,0.00052054,31]
[312686556,1706145125744,-500.0,0.00052054,31]
[312686557,1706145125753,-510.64,0.00052054,31]
[312686558,1706145125763,-500.0,0.00052054,31]
[312686559,1706145125773,-500.0,0.00052054,31]
[312686560,1706145125782,-500.0,0.00052054,31]
[312686561,1706145125792,-563.82,0.00052054,31]
[312686562,1706145125801,-500.0,0.00052054,31]
[312686563,1706145125810,-500.0,0.00052054,31]
[312686564,1706145125820,-510.96,0.00052054,31]
[312686565,1706145125830,-500.0,0.00052054,31]
[312686566,1706145125839,-500.0,0.00052054,31]
[312686567,1706145125849,-545.8,0.00052054,31]
[312686568,1706145125859,-500.0,0.00052054,31]
[312686569,1706145125869,-547.01,0.00052054,31]
[312686570,1706145125879,-500.0,0.00052054,31]
[312686571,1706145125888,-500.0,0.00052054,31]
[312686572,1706145125897,-500.0,0.00052054,31]
[312686573,1706145125906,-500.0,0.00052054,31]
[312686574,1706145125916,-500.0,0.00052054,31]
[312686575,1706145125926,-500.0,0.00052054,31]
[312686576,1706145125936,-665.93,0.00052054,31]
[312686577,1706145125945,-500.0,0.00052054,31]
[312686578,1706145125954,-500.0,0.00052054,31]
[312686579,1706145125964,-500.0,0.00052054,31]
[312686580,1706145125973,-1000.0,0.00052054,7]
[312686581,1706145125983,-500.0,0.00052054,31]
[312686582,1706145125992,-500.0,0.00052054,31]
[312686583,1706145126002,-500.0,0.00052054,31]
[312686584,1706145126013,-500.0,0.00052054,31]
[312686585,1706145126023,-500.0,0.00052054,31]
[312686586,1706145126032,-577.26303136,0.00052054,31]
[312686587,1706145126042,-4118.15,0.00052054,15]
[312686588,1706145126054,-500.0,0.00052054,31]
[312686589,1706145126064,-523.13,0.00052054,31]
[312686590,1706145126074,-937.73,0.00052054,2]
[312686591,1706145126084,-1968.51,0.00052054,31]
[312686592,1706145126094,-500.0,0.00052054,31]
[312686593,1706145126104,-539.3,0.00052054,31]
[312686594,1706145126114,-500.0,0.00052054,31]
[312686595,1706145126124,-500.0,0.00052054,31]
[312686596,1706145126134,-500.0,0.00052054,31]
[312686597,1706145126144,-500.0,0.00052054,31]
[312686598,1706145126154,-4141.1,0.00052054,31]
[312686599,1706145126164,-500.0,0.00052054,31]
[312686600,1706145126173,-500.0,0.00052054,31]
[312686601,1706145126183,-500.0,0.00052054,31]
[312686602,1706145126193,-500.0,0.00052054,31]
[312686603,1706145126203,-500.0,0.00052054,31]
[312686604,1706145126213,-500.0,0.00052054,31]
[312686605,1706145126223,-500.0,0.00052054,31]
[312686606,1706145126232,-500.0,0.00052054,31]
[312686607,1706145126242,-500.0,0.00052054,31]
[312686608,1706145126252,-792.61,0.00052054,31]
[312686609,1706145126261,-500.0,0.00052054,2]
[312686610,1706145126271,-500.0,0.00052054,31]
[312686611,1706145126281,-500.0,0.00052054,31]
[312686612,1706145126291,-500.0,0.00052054,31]
[312686613,1706145126301,-500.0,0.00052054,31]
[312686614,1706145126310,-500.0,0.00052054,2]
[312686615,1706145126320,-500.0,0.00052054,31]
[312686616,1706145126329,-500.0,0.00052054,31]
[312686617,1706145126339,-702.69,0.00052054,31]
[312686618,1706145126350,-500.0,0.00052054,31]
[312686619,1706145126360,-500.0,0.00052054,31]
[312686620,1706145126369,-500.0,0.00052054,31]